fUSD/lending_fUSD_20250405
["ID","MTS","AMOUNT","RATE_DAILY","PERIOD"]
[357195959,1743885055591,-189.30336367,0.00036179,2]
[357195960,1743885055599,-35800.86093228,0.00036179,2]
[357195961,1743885055608,-7769.80671693,0.00036179,2]
[357195962,1743885055617,-22723.70005577,0.00036179,2]
[357195963,1743885055626,-2578.97647798,0.00036179,2]
[357195964,1743885055635,-1883.87113271,0.00036179,7]
[357195965,1743885055644,-30000.0,0.00036179,2]
[357195966,1743885055656,-631.34115816,0.00036179,20]
[357195967,1743885055666,-297.37407019,0.00036179,7]
[357195968,1743885055675,-320.34599989,0.00036179,2]
[357195969,1743885055684,-497.84691768,0.00036179,2]
[357195970,1743885055694,-2131.77,0.00036193,2]
[357195971,1743885055703,-500.0,0.00036193,2]
[357195972,1743885055713,-500.0,0.00036193,2]
[357195973,1743885055722,-1066.0,0.00036226,5]
[357195974,1743885055730,-944.58542896,0.00036277,7]
[357195975,1743885055740,-1874.08,0.00036436,2]
[357195976,1743885055750,-500.0,0.00036436,2]
[357195977,1743885055759,-1269.62,0.00036436,2]
[357195978,1743885055769,-500.0,0.00036436,2]
[357195979,1743885055778,-634.7,0.00036436,2]
[357195980,1743885055787,-2364.85,0.00036436,2]
[357195981,1743885055796,-500.0,0.00036437,2]
[357195982,1743885055805,-500.0,0.00036437,2]
[357195983,1743885055815,-253.72632072,0.00036437,2]
[357195984,1743885055824,-500.0,0.00036437,2]
[357195985,1743885055833,-258.16240725,0.00036437,2]
[357195986,1743885055842,-1000.7222209,0.00036438,2]
[357195987,1743885055850,-210.0,0.0003645,2]
[357195988,1743885055859,-500.0,0.00036531,7]
[357195989,1743885055868,-150.0,0.00036554,2]
[357195990,1743885055878,-17123.12726371,0.000366,2]
[357195991,1743885055887,-1874.08,0.0003671,2]
[357195992,1743885055897,-500.0,0.0003671,2]
[357195993,1743885055913,-1269.62,0.0003671,2]
[357195994,1743885055922,-500.0,0.0003671,2]
[357195995,1743885055932,-634.7,0.0003671,2]
[357195996,1743885055941,-2364.85,0.0003671,2]
[357195997,1743885055950,-500.0,0.00036711,2]
[357195998,1743885055959,-500.0,0.00036711,2]
[357195999,1743885055968,-500.0,0.00036711,2]
[357196000,1743885055977,-162.380719,0.00036712,2]
[357196001,1743885055986,-374.54,0.00036716,2]
[357196002,1743885055995,-500.0,0.00036777,7]
[357196003,1743885056004,-1874.08,0.00036984,2]
[357196004,1743885056013,-500.0,0.00036984,2]
[357196005,1743885056023,-1269.62,0.00036984,2]
[357196006,1743885056032,-500.0,0.00036984,2]
[357196007,1743885056041,-634.7,0.00036984,2]
[357196008,1743885056051,-2364.85,0.00036984,2]
[357196009,1743885056059,-500.0,0.00036985,2]
[357196010,1743885056068,-500.0,0.00036985,2]
[357196011,1743885056078,-356.45788816,0.00036985,2]
[357196012,1743885056087,-151.0,0.00036986,7]
[357196013,1743885056095,-500.0,0.00036999,2]
[357196014,1743885056104,-500.0,0.00036999,2]
[357196015,1743885056114,-151.0,0.00036999,7]
[357196016,1743885056123,-87674.1584761,0.00037,2]
[357196017,1743885056132,-700.0,0.00037,2]
[357196018,1743885056142,-151.0,0.00037,7]
[357196019,1743885056151,-910.32711549,0.00037041,9]
[357196020,1743885056160,-150.0,0.00037115,2]
[357196021,1743885056170,-1366.0,0.00037135,2]
[357196022,1743885056179,-1276.0,0.00037135,2]
[357196023,1743885056187,-909.0,0.00037135,2]
[357196024,1743885056196,-790.0,0.00037135,2]
[357196025,1743885056205,-4097.0,0.00037135,2]
[357196026,1743885056214,-574.0,0.00037135,2]
[357196027,1743885056223,-2457.89239801,0.000372,103]
[357196028,1743885056232,-2457.89239798,0.000372,103]
[357196029,1743885056240,-2457.89239798,0.000372,103]
[357196030,1743885056249,-2457.89239798,0.000372,103]
[357196031,1743885056259,-1874.08,0.00037258,2]
[357196032,1743885056268,-500.0,0.00037258,2]
[357196033,1743885056277,-1269.62,0.00037258,2]
[357196034,1743885056287,-482.99334359,0.00037258,2]
[357196035,1743885056295,-634.7,0.00037258,2]
[357196036,1743885056304,-2364.85,0.00037258,2]
[357196037,1743885056313,-500.0,0.00037259,2]
[357196038,1743885056322,-500.0,0.00037259,2]
[357196039,1743885056331,-168.3888056,0.0003726,2]
[357196040,1743885056340,-2083.97,0.0003727,2]
[357196041,1743885056349,-2682.69,0.000373,14]
[357196042,1743885056358,-152.0,0.00037306,5]
[357196043,1743885056366,-842.2543127,0.00037474,2]
[357196044,1743885056375,-3111.82472,0.00037474,2]
[357196045,1743885056385,-150.0,0.00037491,2]
[357196046,1743885056394,-381.7966603,0.00037499,2]
[357196047,1743885056403,-246.96161101,0.00037499,2]
[357196048,1743885056413,-150.0,0.00037499,3]
[357196049,1743885056422,-50000.0,0.000375,4]
[357196050,1743885056431,-283667.01,0.000375,14]
[357196051,1743885056439,-151.0,0.000375,7]
[357196052,1743885056449,-151.0,0.000375,7]
[357196053,1743885056458,-1874.08,0.00037532,2]
[357196054,1743885056468,-500.0,0.00037532,2]
[357196055,1743885056477,-1269.62,0.00037532,2]
[357196056,1743885056486,-634.7,0.00037532,2]
[357196057,1743885056495,-2364.85,0.00037532,2]
[357196058,1743885056505,-584.83137282,0.00037533,2]
[357196059,1743885056514,-466.24432931,0.00037533,2]
[357196060,1743885056523,-210.0,0.0003759,2]
[357196061,1743885056532,-2938.81,0.000377,3]
[357196062,1743885056541,-500.0,0.00037761,7]
[357196063,1743885056550,-1072.05,0.00037775,2]
[357196064,1743885056560,-311.63247567,0.00037804,5]
[357196065,1743885056569,-1874.08,0.00037806,2]
[357196066,1743885056578,-632.37589011,0.00037806,2]
[357196067,1743885056588,-1269.62,0.00037806,2]
[357196068,1743885056598,-634.7,0.00037806,2]
[357196069,1743885056607,-2364.85,0.00037806,2]
[357196070,1743885056616,-195.96950224,0.00037808,2]
[357196071,1743885056625,-181.07991981,0.00037833,11]
[357196072,1743885056635,-164.76880158,0.000379,2]
[357196073,1743885056777,-250.0,0.00038,120]
[357196074,1743885056787,-300.0,0.00038,2]
[357196075,1743885056796,-1874.08,0.0003808,2]
[357196076,1743885056805,-1269.62,0.0003808,2]
[357196077,1743885056815,-634.7,0.0003808,2]
[357196078,1743885056824,-2364.85,0.0003808,2]
[357196079,1743885056833,-1066.0,0.00038133,5]
[357196080,1743885056843,-1874.08,0.00038354,2]
[357196081,1743885056852,-1269.62,0.00038354,2]
[357196082,1743885056861,-634.7,0.00038354,2]
[357196083,1743885056871,-2364.85,0.00038354,2]
[357196084,1743885056881,-300.0,0.0003838,2]
[357196085,1743885056890,-1000.0,0.00038405,2]
[357196086,1743885056899,-150.0,0.00038428,2]
[357196087,1743885056909,-452.25,0.00038443,2]
[357196088,1743885056918,-337.56,0.00038443,2]
[357196089,1743885056927,-2682.69,0.000386,14]
[357196090,1743885056936,-152.0,0.00038616,6]
[357196091,1743885056946,-1874.08,0.00038628,2]
[357196092,1743885056955,-1269.62,0.00038628,2]
[357196093,1743885056965,-634.7,0.00038628,2]
[357196094,1743885056974,-2364.85,0.00038628,2]
[357196095,1743885056983,-699.7470754,0.00038673,2]
[357196096,1743885056993,-2585.3120775,0.00038673,2]
[357196097,1743885057002,-557.2398381,0.00038674,2]
[357196098,1743885057011,-2058.7994351,0.00038674,2]
[357196099,1743885057021,-150.0,0.00038699,3]
[357196100,1743885057031,-483772.49367763,0.000387,7]
[357196101,1743885057040,-2066.74,0.000387,7]
[357196102,1743885057049,-151.270673,0.000387,4]
[357196103,1743885057058,-2457.89239798,0.000387,112]
[357196104,1743885057068,-151.0,0.000387,14]
[357196105,1743885057078,-14694.05,0.000387,4]
[357196106,1743885057087,-151.0,0.000387,14]
[357196107,1743885057096,-500.0,0.00038712,7]
[357196108,1743885057106,-210.0,0.0003874,2]
[357196109,1743885057116,-300.0,0.0003876,2]
[357196110,1743885057126,-405.1501575,0.00038799,2]
[357196111,1743885057135,-150.0,0.00038799,3]
[357196112,1743885057145,-150.0,0.00038799,3]
[357196113,1743885057154,-1000000.0,0.000388,120]
[357196114,1743885057164,-283667.01,0.000388,14]
[357196115,1743885057173,-151.0,0.000388,14]
[357196116,1743885057183,-151.0,0.000388,14]
[357196117,1743885057193,-200.0,0.000389,14]
[357196118,1743885057203,-1874.08,0.00038902,2]
[357196119,1743885057213,-1269.62,0.00038902,2]
[357196120,1743885057223,-634.7,0.00038902,2]
[357196121,1743885057233,-2364.85,0.00038902,2]
[357196122,1743885057243,-243.0900945,0.00038999,2]
[357196123,1743885057253,-150.0,0.00038999,3]
[357196124,1743885057262,-150.0,0.00038999,3]
[357196125,1743885057272,-1040000.0,0.00039,60]
[357196126,1743885057281,-27460.56778602,0.00039,20]
[357196127,1743885057290,-750.0,0.00039,2]
[357196128,1743885057300,-151.0,0.00039,14]
[357196129,1743885057309,-151.0,0.00039,14]
[357196130,1743885057318,-300.0,0.0003914,2]
[357196131,1743885057328,-1874.08,0.00039176,2]
[357196132,1743885057337,-1269.62,0.00039176,2]
[357196133,1743885057346,-634.7,0.00039176,2]
[357196134,1743885057356,-2364.85,0.00039176,2]
[357196135,1743885057368,-500.0,0.0003926,7]
[357196136,1743885057377,-150.0,0.00039366,2]
[357196137,1743885057389,-1874.08,0.0003945,2]
[357196138,1743885057398,-1269.62,0.0003945,2]
[357196139,1743885057408,-634.7,0.0003945,2]
[357196140,1743885057417,-2364.85,0.0003945,2]
[357196141,1743885057426,-500.0,0.00039469,7]
[357196142,1743885057436,-500.0,0.00039476,7]
[357196143,1743885057445,-500.0,0.000395,120]
[357196144,1743885057454,-50000.0,0.000395,6]
[357196145,1743885057464,-300.0,0.0003952,2]
[357196146,1743885057473,-500.0,0.00039544,60]
[357196147,1743885057483,-900.0,0.00039544,60]
[357196148,1743885057492,-500.0,0.00039544,60]
[357196149,1743885057501,-500.0,0.00039718,7]
[357196150,1743885057511,-1874.08,0.00039724,2]
[357196151,1743885057520,-1269.62,0.00039724,2]
[357196152,1743885057529,-634.7,0.00039724,2]
[357196153,1743885057539,-2364.85,0.00039724,2]
[357196154,1743885057547,-210.0,0.0003989,2]
[357196155,1743885057557,-152.0,0.00039926,7]
[357196156,1743885057567,-1874.2929,0.00039998,2]
[357196157,1743885057576,-1269.66162653,0.00039998,2]
[357196158,1743885057586,-634.82784894,0.00039998,2]
[357196159,1743885057596,-2364.93316201,0.00039998,2]
[357196160,1743885057605,-429.29858391,0.00039999,31]
[357196161,1743885057615,-475.67031874,0.00039999,31]
[357196162,1743885057625,-481.65758516,0.00039999,31]
[357196163,1743885057634,-500.0,0.00039999,31]
[357196164,1743885057643,-500.0,0.00039999,31]
[357196165,1743885057655,-500.0,0.00039999,31]
[357196166,1743885057665,-500.0,0.00039999,31]
[357196167,1743885057675,-500.0,0.00039999,31]
[357196168,1743885057684,-500.0,0.00039999,31]
[357196169,1743885057694,-500.0,0.00039999,31]
[357196170,1743885057706,-500.0,0.00039999,31]
[357196171,1743885057715,-500.0,0.00039999,31]
[357196172,1743885057724,-500.0,0.00039999,31]
[357196173,1743885057737,-500.0,0.00039999,31]
[357196174,1743885057747,-500.0,0.00039999,31]
[357196175,1743885057756,-500.0,0.00039999,31]
[357196176,1743885057769,-500.0,0.00039999,31]
[357196177,1743885057778,-500.0,0.00039999,31]
[357196178,1743885057788,-500.0,0.00039999,31]
[357196179,1743885057797,-500.0,0.00039999,31]
[357196180,1743885057807,-500.0,0.00039999,31]
[357196181,1743885057816,-500.0,0.00039999,31]
[357196182,1743885057826,-500.0,0.00039999,31]
[357196183,1743885057835,-500.0,0.00039999,31]
[357196184,1743885057844,-500.0,0.00039999,31]
[357196185,1743885057853,-500.0,0.00039999,31]
[357196186,1743885057863,-500.0,0.00039999,31]
[357196187,1743885057872,-500.0,0.00039999,31]
[357196188,1743885057882,-500.0,0.00039999,31]
[357196189,1743885057891,-500.0,0.00039999,31]
[357196190,1743885057901,-500.0,0.00039999,31]
[357196191,1743885057910,-500.0,0.00039999,31]
[357196192,1743885057919,-500.0,0.00039999,31]
[357196193,1743885057929,-500.0,0.00039999,31]
[357196194,1743885057938,-500.0,0.00039999,31]
[357196195,1743885057947,-500.0,0.00039999,31]
[357196196,1743885057956,-500.0,0.00039999,31]
[357196197,1743885057966,-500.0,0.00039999,31]
[357196198,1743885057975,-500.0,0.00039999,31]
[357196199,1743885057985,-500.0,0.00039999,31]
[357196200,1743885057995,-572.42909696,0.00039999,31]
[357196201,1743885058004,-572.42909696,0.00039999,31]
[357196202,1743885058014,-572.42909696,0.00039999,31]
[357196203,1743885058023,-572.42909696,0.00039999,31]
[357196204,1743885058032,-572.42909696,0.00039999,31]
[357196205,1743885058042,-572.42909696,0.00039999,31]
[357196206,1743885058051,-572.42909696,0.00039999,31]
[357196207,1743885058060,-572.42909696,0.00039999,31]
[357196208,1743885058070,-572.42909696,0.00039999,31]
[357196209,1743885058079,-572.42909696,0.00039999,31]
[357196210,1743885058089,-572.42909696,0.00039999,31]
[357196211,1743885058099,-572.42909696,0.00039999,31]
[357196212,1743885058108,-572.42909696,0.00039999,31]
[357196213,1743885058118,-572.42909696,0.00039999,31]
[357196214,1743885058127,-572.42909696,0.00039999,31]
[357196215,1743885058137,-572.42909696,0.00039999,31]
[357196216,1743885058146,-572.42909696,0.00039999,31]
[357196217,1743885058155,-572.42909696,0.00039999,31]
[357196218,1743885058164,-572.42909696,0.00039999,31]
[357196219,1743885058174,-572.42909696,0.00039999,31]
[357196220,1743885058183,-572.42909696,0.00039999,31]
[357196221,1743885058193,-572.42909696,0.00039999,31]
[357196222,1743885058202,-572.42909696,0.00039999,31]
[357196223,1743885058212,-572.42909696,0.00039999,31]
[357196224,1743885058221,-572.42909696,0.00039999,31]
[357196225,1743885058230,-572.42909696,0.00039999,31]
[357196226,1743885058240,-572.42909696,0.00039999,31]
[357196227,1743885058249,-572.42909696,0.00039999,31]
[357196228,1743885058259,-572.42909696,0.00039999,31]
[357196229,1743885058268,-572.42909696,0.00039999,31]
[357196230,1743885058278,-548.57788456,0.00039999,31]
[357196231,1743885058287,-548.57788456,0.00039999,31]
[357196232,1743885058296,-548.57788456,0.00039999,31]
[357196233,1743885058306,-548.57788456,0.00039999,31]
[357196234,1743885058315,-548.57788456,0.00039999,31]
[357196235,1743885058324,-548.57788456,0.00039999,31]
[357196236,1743885058333,-7978.79588942,0.0004,2]
[357196237,1743885058343,-5109.47325809,0.0004,30]
[357196238,1743885058352,-965.79199956,0.0004,20]
[357196239,1743885058362,-500.0,0.0004,5]
[357196240,1743885058370,-250.0,0.0004,120]
[357196241,1743885058380,-2682.69,0.0004,14]
[357196242,1743885058389,-839.87718342,0.0004,3]
[357196243,1743885058399,-1072.05,0.00040039,2]
[357196244,1743885058409,-900.0,0.00040092,60]
[357196245,1743885058418,-1366.0,0.00040135,2]
[357196246,1743885058427,-4097.0,0.00040135,2]
[357196247,1743885058436,-1066.0,0.0004014,5]
[357196248,1743885058446,-150.0,0.00040199,3]
[357196249,1743885058455,-283667.01,0.000402,14]
[357196250,1743885058465,-151.0,0.000402,14]
[357196251,1743885058474,-151.0,0.000402,14]
[357196252,1743885058484,-500.0,0.00040271,5]
[357196253,1743885058493,-150.0,0.00040303,2]
[357196254,1743885058502,-834.2495785,0.00040352,5]
[357196255,1743885058512,-260.63,0.00040486,2]
[357196256,1743885058521,-181.12808613,0.00040487,30]
[357196257,1743885058531,-1000.0,0.000405,120]
[357196258,1743885058541,-162.42,0.000406,31]
[357196259,1743885058551,-162.42,0.000406,31]
[357196260,1743885058560,-162.42,0.000406,31]
[357196261,1743885058569,-162.42,0.000406,31]
[357196262,1743885058578,-162.42,0.000406,31]
[357196263,1743885058587,-162.42,0.000406,31]
[357196264,1743885058596,-162.42,0.000406,31]
[357196265,1743885058605,-162.42,0.000406,31]
[357196266,1743885058614,-162.42,0.000406,31]
[357196267,1743885058623,-162.42,0.000406,31]
[357196268,1743885058635,-162.42,0.000406,31]
[357196269,1743885058644,-162.42,0.000406,31]
[357196270,1743885058655,-162.42,0.000406,31]
[357196271,1743885058665,-162.42,0.000406,31]
[357196272,1743885058675,-162.42,0.000406,31]
[357196273,1743885058684,-162.42,0.000406,31]
[357196274,1743885058694,-162.42,0.000406,31]
[357196275,1743885058705,-162.42,0.000406,31]
[357196276,1743885058719,-162.42,0.000406,31]
[357196277,1743885058728,-162.42,0.000406,31]
[357196278,1743885058738,-162.42,0.000406,31]
[357196279,1743885058747,-162.42,0.000406,31]
[357196280,1743885058756,-162.42,0.000406,31]
[357196281,1743885058765,-162.42,0.000406,31]
[357196282,1743885058775,-900.0,0.0004064,60]
[357196283,1743885058784,-500.0,0.0004064,60]
[357196284,1743885058793,-500.0,0.0004064,60]
[357196285,1743885058802,-181.07991981,0.00040867,15]
[357196286,1743885058811,-500.0,0.00040972,30]
[357196287,1743885058820,-2000.0,0.00041,120]
[357196288,1743885058829,-1028.37154242,0.00041,120]
[357196289,1743885058838,-800.0,0.00041,2]
[357196290,1743885058846,-161.0,0.00041,14]
[357196291,1743885058855,-210.0,0.0004103,2]
[357196292,1743885058864,-212.0,0.0004103,30]
[357196293,1743885058872,-150.5,0.00041066,120]
[357196294,1743885058882,-150.5,0.00041076,120]
[357196295,1743885058891,-150.5,0.00041086,120]
[357196296,1743885058900,-500.0,0.00041095,2]
[357196297,1743885058909,-500.0,0.00041095,2]
[357196298,1743885058918,-500.0,0.00041095,2]
[357196299,1743885058926,-500.0,0.00041095,2]
[357196300,1743885058936,-500.0,0.00041095,2]
[357196301,1743885058945,-500.0,0.00041095,2]
[357196302,1743885058954,-500.0,0.00041095,2]
[357196303,1743885058963,-500.0,0.00041095,2]
[357196304,1743885058973,-449.67601351,0.00041095,2]
[357196305,1743885058981,-541.02524159,0.00041095,2]
[357196306,1743885058990,-500.0,0.00041095,120]
[357196307,1743885058999,-526.01529859,0.00041095,120]
[357196308,1743885059008,-1018.30370495,0.00041095,2]
[357196309,1743885059017,-530.60262531,0.00041095,120]
[357196310,1743885059026,-500.0,0.00041096,30]
[357196311,1743885059035,-500.0,0.00041096,30]
[357196312,1743885059044,-500.0,0.00041096,30]
[357196313,1743885059052,-500.0,0.00041096,30]
[357196314,1743885059061,-500.0,0.00041096,30]
[357196315,1743885059070,-500.0,0.00041096,30]
[357196316,1743885059079,-500.0,0.00041096,30]
[357196317,1743885059088,-460.0,0.00041096,30]
[357196318,1743885059097,-1063.0,0.00041096,13]
[357196319,1743885059107,-279.0,0.00041096,30]
[357196320,1743885059116,-700.0,0.00041096,120]
[357196321,1743885059126,-500.0,0.00041096,90]
[357196322,1743885059135,-500.0,0.00041096,90]
[357196323,1743885059144,-1000.0,0.00041179,2]
[357196324,1743885059154,-1000.0,0.00041179,4]
[357196325,1743885059163,-900.0,0.00041188,60]
[357196326,1743885059172,-2682.69,0.000412,14]
[357196327,1743885059182,-500.0,0.00041209,30]
[357196328,1743885059191,-152.0,0.00041236,8]
[357196329,1743885059207,-150.0,0.0004124,2]
[357196330,1743885059216,-500.0,0.00041324,30]
[357196331,1743885059225,-283667.01,0.000414,60]
[357196332,1743885059235,-500.0,0.00041418,30]
[357196333,1743885059244,-444.9,0.00041491,30]
[357196334,1743885059254,-784.33,0.00041491,30]
[357196335,1743885059263,-784.33,0.00041491,30]
[357196336,1743885059272,-444.9,0.00041491,30]
[357196337,1743885059281,-444.9,0.00041491,30]
[357196338,1743885059291,-784.33,0.00041491,30]
[357196339,1743885059300,-784.33,0.00041491,30]
[357196340,1743885059309,-444.9,0.00041491,30]
[357196341,1743885059319,-252.19,0.00041491,30]
[357196342,1743885059328,-182.3,0.00041491,30]
[357196343,1743885059337,-1500.0,0.000415,120]
[357196344,1743885059346,-49999.999999,0.000415,5]
[357196345,1743885059355,-2000.0,0.000415,120]
[357196346,1743885059365,-200.0,0.000416,120]
[357196347,1743885059374,-900.0,0.00041736,60]
[357196348,1743885059383,-500.0,0.00041736,60]
[357196349,1743885059392,-500.0,0.00041736,60]
[357196350,1743885059402,-165.33,0.00041765,30]
[357196351,1743885059411,-347.7,0.00041765,30]
[357196352,1743885059420,-150.0,0.00041765,30]
[357196353,1743885059430,-444.38,0.00041765,30]
[357196354,1743885059439,-164.76,0.00041765,30]
[357196355,1743885059448,-154.42,0.00041765,30]
[357196356,1743885059457,-151.21,0.00041765,30]
[357196357,1743885059466,-154.2,0.00041765,30]
[357196358,1743885059475,-150.0,0.00041765,30]
[357196359,1743885059485,-150.0,0.00041765,30]
[357196360,1743885059494,-150.0,0.00041765,30]
[357196361,1743885059503,-150.0,0.00041765,30]
[357196362,1743885059513,-150.0,0.00041765,30]
[357196363,1743885059522,-444.38,0.00041765,30]
[357196364,1743885059531,-347.7,0.00041765,30]
[357196365,1743885059540,-150.0,0.00041765,30]
[357196366,1743885059549,-150.0,0.00041765,30]
[357196367,1743885059558,-347.7,0.00041765,30]
[357196368,1743885059567,-150.0,0.00041765,30]
[357196369,1743885059577,-444.38,0.00041765,30]
[357196370,1743885059586,-444.38,0.00041765,30]
[357196371,1743885059595,-150.0,0.00041765,30]
[357196372,1743885059604,-150.0,0.00041765,30]
[357196373,1743885059613,-150.0,0.00041765,30]
[357196374,1743885059623,-150.0,0.00041765,30]
[357196375,1743885059633,-150.0,0.00041765,30]
[357196376,1743885059642,-442.58,0.00041765,30]
[357196377,1743885059652,-150.0,0.00041765,30]
[357196378,1743885059664,-150.0,0.00041765,30]
[357196379,1743885059673,-150.0,0.00041765,30]
[357196380,1743885059683,-150.0,0.00041765,30]
[357196381,1743885059691,-150.0,0.00041765,30]
[357196382,1743885059703,-150.0,0.00041765,30]
[357196383,1743885059713,-395.85,0.00041765,30]
[357196384,1743885059722,-150.0,0.00041864,3]
[357196385,1743885059732,-150.0,0.00041864,3]
[357196386,1743885059741,-511720.268467,0.00041865,7]
[357196387,1743885059751,-11291.8789655,0.00041865,7]
[357196388,1743885059760,-9254.45974528,0.00041865,7]
[357196389,1743885059770,-272.52919338,0.00041865,7]
[357196390,1743885059779,-1723.58471006,0.00041865,7]
[357196391,1743885059788,-87393.4789294,0.00041865,7]
[357196392,1743885059797,-388.31024905,0.00041865,7]
[357196393,1743885059807,-167.0,0.00042,120]
[357196394,1743885059816,-347.34149166,0.00042,120]
[357196395,1743885059826,-2000.0,0.00042,120]
[357196396,1743885059835,-25074.48211119,0.00042063,30]
[357196397,1743885059844,-150.0,0.00042177,2]
[357196398,1743885059853,-209.0,0.0004218,2]
[357196399,1743885059862,-210.0,0.0004218,2]
[357196400,1743885059871,-212.0,0.0004218,30]
[357196401,1743885059881,-1000.0,0.00042246,2]
[357196402,1743885059891,-1066.0,0.00042252,30]
[357196403,1743885059900,-1072.05,0.00042303,2]
[357196404,1743885059910,-500.0,0.00042325,30]
[357196405,1743885059919,-1000.0,0.000424,7]
[357196406,1743885059928,-1188.0,0.000424,6]
[357196407,1743885059938,-1000.0,0.000424,5]
[357196408,1743885059948,-888.0,0.000424,7]
[357196409,1743885059958,-1000.0,0.000424,6]
[357196410,1743885059967,-1000.0,0.000424,5]
[357196411,1743885059978,-1000.0,0.000425,6]
[357196412,1743885059987,-1000.0,0.000425,6]
[357196413,1743885060134,-550.0,0.000425,15]
[357196414,1743885060145,-1000.0,0.000425,9]
[357196415,1743885060155,-1000.0,0.000425,8]
[357196416,1743885060165,-1000.0,0.000425,7]
[357196417,1743885060175,-1000.0,0.000425,6]
[357196418,1743885060184,-283667.01,0.000425,60]
[357196419,1743885060194,-2000.0,0.000425,120]
[357196420,1743885060204,-2682.69,0.000425,14]
[357196421,1743885060214,-151.270673,0.000425,60]
[357196422,1743885060223,-151.11,0.000425,2]
[357196423,1743885060233,-1500.0,0.000425,120]
[357196424,1743885060242,-152.0,0.00042546,9]
[357196425,1743885060252,-500.0,0.00042566,30]
[357196426,1743885060262,-910.32711549,0.00042754,15]
[357196427,1743885060272,-150.0,0.00042799,3]
[357196428,1743885060282,-150.0,0.00042799,3]
[357196429,1743885060292,-88328.64233086,0.000428,2]
[357196430,1743885060301,-1000000.0,0.000428,120]
[357196431,1743885060310,-900.0,0.00042832,60]
[357196432,1743885060320,-500.0,0.00042832,60]
[357196433,1743885060329,-500.0,0.00042832,60]
[357196434,1743885060338,-250.7,0.0004297,120]
[357196435,1743885060347,-150.5,0.0004298,120]
[357196436,1743885060356,-150.5,0.0004299,120]
[357196437,1743885060366,-1000.0,0.00043,8]
[357196438,1743885060376,-1000.0,0.00043,8]
[357196439,1743885060385,-1016.0,0.00043,120]
[357196440,1743885060394,-1679.22109967,0.00043,30]
[357196441,1743885060403,-80000.0,0.00043,7]
[357196442,1743885060412,-850.0,0.00043,2]
[357196443,1743885060422,-151.270673,0.00043,10]
[357196444,1743885060431,-150.0,0.00043115,2]
[357196445,1743885060440,-642.824,0.00043135,2]
[357196446,1743885060450,-161.0,0.00043151,90]
[357196447,1743885060459,-505.39376365,0.00043161,30]
[357196448,1743885060469,-1000.0,0.00043179,4]
[357196449,1743885060479,-1000.0,0.00043179,4]
[357196450,1743885060488,-1000.0,0.00043179,4]
[357196451,1743885060497,-1000.0,0.00043179,4]
[357196452,1743885060507,-1000.0,0.00043179,4]
[357196453,1743885060516,-1000.0,0.00043179,4]
[357196454,1743885060525,-1000.0,0.00043179,4]
[357196455,1743885060534,-1000.0,0.00043179,4]
[357196456,1743885060544,-1000.0,0.00043179,4]
[357196457,1743885060553,-1000.0,0.00043179,4]
[357196458,1743885060562,-1000.0,0.00043179,4]